Cogmind - Beta 16.1 @@@ ROGUE MODE // 2026.02.26 @ 19:11:01 Player: Fleshy Vegetable Bird Result: Destroyed by P-70 Sage with High-powered Shock Rifle Performance ------------- Evolutions (5) 2500 Regions Visited (5) 1000 Robots Destroyed (62) 310 Value Destroyed (1810) 1810 Prototype IDs (10) 200 Alien Tech Used (0) 0 Bonus (964) 964 TOTAL SCORE: 6784 Bonus ------- High Alert Combat Kills 231 Follower Combat Kills 57 Registered with UFD 300 Met Optimus in HQ 500 Friendly Fire -124 Cogmind --------- Core Integrity 0/1000 Matter 157/300 Energy 98/100 System Corruption 7% Temperature Cool (0) Movement Core (50) Location -5/Factory Parts ------- > --- POWER (1) -------- (None) > --- PROPULSION (5) --- (None) > --- UTILITY (8) ------ Machine Analyzer Target Analyzer Hacking Suite > --- WEAPON (3) ------- (None) > --- INVENTORY (5) ---- Huge Storage Unit Energy Well (350) Makeshift Thermal Plating Axe Companion Sword Peak State ------------ > --- POWER ------------ Neutrino Core > --- PROPULSION ------- Improved Treads Advanced Treads Improved Medium Treads Improved Medium Treads Wheel > --- UTILITY ---------- High-capacity Storage Unit Energy Well Machine Analyzer Target Analyzer Improved Weapon Cycler Phase Shifter Improved Medium Armor Plating Hacking Suite > --- WEAPON ----------- KE Penetrator Hypervelocity Coil Gun Improved Proton Missile Launcher > --- INVENTORY -------- Wheel Huge Storage Unit Huge Storage Unit High-capacity Matter Pod IFF Parser Advanced Targeting Computer Recoil Stabilizer Microactuators Makeshift Thermal Plating Improved Focal Shield Improved Thermal Defense Suite Makeshift Hacking Suite CPS Tube Multitool Axe Companion Sword Vortex Trap Vortex Trap DRS Beacon [Rating: 75] Favorites ----------- Power Ion Engine Engine Ion Engine Power Core Nuclear Core Propulsion Wheel Treads Improved Medium Treads Wheel Wheel Utility High-capacity Storage Unit Device Improved Weapon Cycler Storage High-capacity Storage Unit Processor Machine Analyzer Hackware Hacking Suite Protection Light Armor Plating Weapon Magnetic Acceleration Cannon Energy Gun Medium Laser Ballistic Gun Subdweller Machine Gun Ballistic Cannon Magnetic Acceleration Cannon Launcher Heavy Rocket Launcher Special Weapon Mining Laser Slashing Weapon Axe Build | -11 -10 -10 -7 -7 -5 ------- Run | Yrd Mat Sub Rec Scr Fac Slots Evolved 10 | . . . . . 10 Power . | . . . . . . Propulsion 3 | . . . . . 3 Utility 6 | . . . . . 6 Weapon 1 | . . . . . 1 Parts Attached 73 | 8 5 18 . 12 30 Power 8 | 1 1 2 . 3 1 Engine 4 | 1 1 2 . . . Core 4 | . . . . 3 1 Reactor . | . . . . . . Propulsion 23 | 3 1 9 . 3 7 Treads 14 | 1 1 5 . 3 4 Leg . | . . . . . . Wheel 9 | 2 . 4 . . 3 Hover . | . . . . . . Flight . | . . . . . . Utility 26 | 2 2 2 . 3 17 Device 11 | 1 . . . . 10 Storage 5 | 1 1 . . 2 1 Processor 3 | . . . . . 3 Hackware 2 | . . . . . 2 Protection 5 | . 1 2 . 1 1 Artifact . | . . . . . . Weapon 16 | 2 1 5 . 3 5 Energy Gun 4 | 2 1 1 . . . Energy Cannon . | . . . . . . Ballistic Gun 3 | . . 1 . . 2 Ballistic Cannon 2 | . . 1 . 1 . Launcher 3 | . . 1 . 1 1 Special Weapon 1 | . . 1 . . . Impact Weapon . | . . . . . . Slashing Weapon 3 | . . . . 1 2 Piercing Weapon . | . . . . . . Special Melee Weapon . | . . . . . . Unidentified Prototypes 2 | . . . . . 2 Parts Lost 25 | . 1 6 . . 18 Power 2 | . . 1 . . 1 Propulsion 8 | . . 1 . . 7 Utility 8 | . 1 1 . . 6 Weapon 7 | . . 3 . . 4 Highest Loss Streak 16 | . 1 4 . . 16 To Critical Strikes 1 | . . 1 . . . Average Backups 17 | 2 13 18 15 19 15 Power . | . 1 . . . . Propulsion 2 | 1 6 3 2 2 1 Utility 10 | . 4 8 8 12 10 Weapon 3 | . 2 4 3 2 2 Tool/Special . | . . . . . . Unused Backups 44 | 1 1 4 1 21 16 Power 3 | . . . . 2 1 Propulsion 3 | 1 . . . 1 1 Utility 23 | . 1 2 1 9 10 Weapon 13 | . . 2 . 9 2 Tool/Special 2 | . . . . . 2 Average Slot Usage (%) 96 | . 99 97 100 95 96 Engine 6 | . 14 13 14 . . Core 5 | . . . . 11 4 Treads 17 | . 13 21 14 14 19 Wheel 10 | . 14 6 14 13 6 Device 2 | . 10 . . . 11 Storage 13 | . 14 14 14 14 9 Processor 1 | . . . . . 11 Protection 11 | . 3 12 14 14 4 Energy Gun 4 | . 28 7 . . . Ballistic Gun 3 | . . 5 14 2 3 Ballistic Cannon 7 | . . 8 . 10 4 Launcher 6 | . . . 14 12 2 Special Weapon 1 | . . 4 . . . Peak Build Rating 75 | 7 9 16 17 30 75 Average Rating 25 | 6 7 13 16 25 64 On Entrance 12 | . 7 9 16 17 27 Avg Prop Armor Cover (%) 9 | 10 9 10 12 9 7 Naked Turns . | . . . . . . Heaviest Build 123 | 14 51 61 61 110 123 Greatest Support 105 | 20 20 40 10 10 105 Greatest Overweight (x) 12 | 3 5 6 6 10 12 Average Overweight (x) 5 | . 2 2 6 7 1 Largest Inventory Capacity 25 | 8 20 20 20 25 25 Average Capacity 20 | 7 15 20 20 22 20 Most Carried 25 | 6 20 20 17 25 24 Average Carried 19 | 2 13 19 16 20 18 Final Capacity 25 | 8 20 20 20 25 5 Final Carried 25 | 6 20 16 17 25 5 Class Distribution -------------------- 72% | Mutant 23% | Derelict-Mutant 3% | Scavenger-Mutant Dominant Class ---------------- Mutant | -10/Materials Mutant | -10/Subcaves Derelict-Mutant | -7/Recycling Mutant | -7/Scraptown Derelict-Mutant | -5/Factory Resources | -11 -10 -10 -7 -7 -5 ----------- Run | Yrd Mat Sub Rec Scr Fac Matter Collected 2115 | 280 139 464 318 175 739 Remotely . | . . . . . . Salvage Created 2386 | 206 342 375 . . 1463 Parts 140 | 14 27 17 . . 82 Haulers Intercepted 2 | . 2 . . . . Recyclers Shooed 4 | . 2 . . . 2 Parts Field Recycled . | . . . . . . Retrieved Matter . | . . . . . . Parts Self-Destructed 11 | . . 11 . . . Prevented . | . . . . . . Parts Restored . | . . . . . . Kills | -11 -10 -10 -7 -7 -5 ------- Run | Yrd Mat Sub Rec Scr Fac Combat Hostiles Destroyed 42 | . 11 8 . . 23 Guns 28 | . 11 7 . . 10 Cannons 6 | . . 1 . . 5 AOE 8 | . . . . . 8 Classes Destroyed 13 | 2 4 1 . . 6 Worker 5 | . . . . . 5 Builder 4 | . . . . . 4 Tunneler 5 | 5 . . . . . Hauler 2 | . 2 . . . . Recycler 2 | 1 . . . . 1 Watcher 1 | . 1 . . . . Swarmer 16 | . 9 . . . 7 Grunt 13 | . 2 1 . . 10 Duelist 1 | . . . . . 1 Sentry 1 | . . . . . 1 Hunter 2 | . . . . . 2 Programmer 2 | . . . . . 2 Subdweller 7 | . . 7 . . . Thug 1 | . . 1 . . . Best Kill Streak 8 | 4 3 2 . . 8 Combat Bots Only 5 | . 3 2 . . 5 Max Kills in Single Turn 4 | 1 2 1 . . 4 Gunslinging 1 | . 1 . . . . Exploded 2 | . . . . . 2 Melee . | . . . . . . Uniques/NPCs Destroyed . | . . . . . . Combat | -11 -10 -10 -7 -7 -5 -------- Run | Yrd Mat Sub Rec Scr Fac Hostile Shots Fired 377 | . 54 86 . . 237 Missed 112 | . 19 27 . . 66 Hits 265 | . 35 59 . . 171 Melee 10 | . . . . . 10 Projectile 255 | . 35 59 . . 161 AOE 1 | . . . . . 1 Critical Strikes 10 | . 1 2 . . 7 Damage Taken 4605 | . 314 1088 . . 3203 Core 1254 | . 82 155 . . 1017 Absorbed by Shields 335 | . . . . . 335 Ignored by Resistances 52 | . . . . . 52 Core Remaining (%) 52 | 100 . . . 5 . Volleys Fired 227 | 12 45 110 1 . 59 Largest 3 | 2 2 2 1 . 3 Hottest 111 | 90 90 110 40 . 111 Shots Fired 356 | 24 89 143 1 . 99 Gun 220 | 24 89 53 . . 54 Cannon 38 | . . 12 . . 26 Launcher 26 | . . 6 1 . 19 Special 72 | . . 72 . . . Kinetic 106 | . . 25 1 . 80 Thermal 224 | 24 89 111 . . . Explosive . | . . . . . . Electromagnetic 26 | . . 7 . . 19 Robot Hit Streak 16 | 5 5 16 . . 10 Robot Miss Streak 4 | 2 3 4 . . 3 Penetration Max 1 | . . . . . 1 Secondary Targets 2 | . 1 1 . . . Max Gunslinging Chain 1 | . 1 1 . . . Shots Hit Robots 190 | 17 49 53 . . 71 Core Hits 110 | 7 19 21 . . 63 Critical Kills 7 | . . 1 . . 6 Critical Parts Destroyed 14 | . . 2 . . 12 Critical Strikes 30 | . 1 9 . . 20 Burn 4 | . 1 3 . . . Destroy 24 | . . 6 . . 18 Blast 2 | . . . . . 2 Melee Attacks 39 | . . . . . 39 Impact . | . . . . . . Slashing 39 | . . . . . 39 Piercing . | . . . . . . Sneak Attacks 6 | . . . . . 6 Combat Hostiles . | . . . . . . Follow-up Attacks . | . . . . . . Damage Inflicted 5168 | 200 618 777 48 . 3525 Guns 1813 | 200 618 453 . . 542 Cannons 707 | . . 177 . . 530 Explosions 2236 | . . 147 48 . 2041 Melee 411 | . . . . . 411 Ramming 1 | . . . . . 1 Kinetic 1563 | . . 443 48 . 1072 Thermal 1512 | 200 618 312 . . 382 Explosive 476 | . . . . . 476 Electromagnetic 1205 | . . 22 . . 1183 Impact . | . . . . . . Slashing 411 | . . . . . 411 Piercing . | . . . . . . Highest Corruption 5 | . 1 1 1 1 5 Average Corruption 1 | . 1 1 1 1 4 Corruption Purged . | . . . . . . Corruption Blocked . | . . . . . . Effects 40 | . . 24 3 . 13 Message Errors 11 | . . 3 2 . 6 Matter Fused 7 | . . 6 . . 1 Heat Flow Errors 8 | . . 6 . . 2 Energy Discharges 5 | . . 2 . . 3 Data Loss (minor) 3 | . . 3 . . . Data Loss (major) 1 | . . . 1 . . Misfires 3 | . . 2 . . 1 Alerts 2 | . . 2 . . . Overload Shots . | . . . . . . Overflow Damage 253 | . . . 8 . 245 Projectiles . | . . . . . . Explosions 118 | . . . 8 . 110 Melee 135 | . . . . . 135 Knockbacks 11 | . . 5 . . 6 Impact . | . . . . . . Kinetic 10 | . . 4 . . 6 Secondary 1 | . . 1 . . . Self-Inflicted Damage 102 | . . . . . 102 Shots 5 | . . . . . 5 Rammed 1 | . . . . . 1 Targets Rammed 1 | . . . . . 1 Kicked . | . . . . . . Crushed . | . . . . . . Highest Temperature 265 | 90 90 248 . . 265 Average Temperature 40 | 33 29 48 . . 52 Received Heat Transfer 765 | . 30 378 . . 357 Siege Activations . | . . . . . . Martial Activations . | . . . . . . Shielding Activations . | . . . . . . Robots Disrupted . | . . . . . . Combat Hostiles . | . . . . . . Robots Corrupted . | . . . . . . Combat Hostiles . | . . . . . . Parts Fried 8 | . . . . . 8 Impact Corruptions . | . . . . . . Robots Melted . | . . . . . . Combat Hostiles . | . . . . . . Parts Melted 6 | . 4 2 . . . Heat Transferred 3683 | 533 1710 1040 . . 400 Parts Sabotaged . | . . . . . . Parts Stolen . | . . . . . . Parts Stripped . | . . . . . . Power Chain Reactions 2 | . . . . . 2 Alert | -11 -10 -10 -7 -7 -5 ------- Run | Yrd Mat Sub Rec Scr Fac Maximum Alert Level 3 | . . . . . 3 Low Security (%) 85 | 100 100 . 100 . 70 Level 1 . | . . . . . . Level 2 9 | . . . . . 19 Level 3 4 | . . . . . 9 Level 4 . | . . . . . . Level 5 . | . . . . . . High Security . | . . . . . . Max Security . | . . . . . . Peak Influence 843 | 10 140 . 26 . 843 Initial 26 | . 3 . 26 . . Average 105 | 3 51 . 2 . 189 Influence Increases 1882 | 30 368 80 32 . 1372 Destroy 0b10 Robot/C 740 | . 220 20 . . 500 Destroy 0b10 Robot/NC 100 | 30 15 . . . 55 Destroy Leader 118 | . 56 . . . 62 Allied During Kill 8 | . . . . . 8 Trap Triggered on 0b10 20 | . . . . . 20 Successful Hack 83 | . 16 . 21 . 46 Disable Machine 225 | . . . . . 225 Destroy Structure 198 | . 1 . 11 . 186 Lose Combat Pursuer 390 | . 60 60 . . 270 Influence Decreases 1056 | 25 359 38 88 . 546 Entered New Map 39 | . 2 7 30 . . Time Decay 783 | 25 333 21 58 . 346 Lost Part 200 | . 10 10 . . 180 Lost Ally 20 | . . . . . 20 Purge Threat 14 | . 14 . . . . Squads Dispatched 13 | . 3 . . . 10 Investigation 4 | . 2 . . . 2 Extermination 1 | . . . . . 1 Reinforcement 7 | . 1 . . . 6 Assault . | . . . . . . Garrison 1 | . . . . . 1 Intercept . | . . . . . . Searches Triggered . | . . . . . . Construction Impeded 1 | . . . . . 1 Haulers Reinforced 3 | . . . . . 3 Active Scanning Responses . | . . . . . . Cargo Convoy Interrupts 1 | . . . . . 1 Stealth | -11 -10 -10 -7 -7 -5 --------- Run | Yrd Mat Sub Rec Scr Fac Distress Signals 5 | . 1 . . . 4 Communications Jammed . | . . . . . . Distress Signals . | . . . . . . Times Spotted 128 | . 19 30 . . 79 Peak Tracking Total 22 | . 4 7 . . 22 Tactical Retreats 15 | . 2 4 . . 9 Traps | -11 -10 -10 -7 -7 -5 ------- Run | Yrd Mat Sub Rec Scr Fac Traps Triggered 5 | . 4 . . . 1 Indirectly . | . . . . . . Trap Hack Attempts . | . . . . . . Triggered . | . . . . . . Disarmed . | . . . . . . Reprogrammed . | . . . . . . Reused 2 | . . . . . 2 Traps Extracted . | . . . . . . Installed 2 | . . . . . 2 Triggered 2 | . . . . . 2 Most Traps Carried 2 | . . . . 2 2 Machines | -11 -10 -10 -7 -7 -5 ---------- Run | Yrd Mat Sub Rec Scr Fac Machines Disabled 16 | . . 1 . . 15 Max in Single Turn 6 | . . 1 . . 6 Garrison Access 2 | . . . . . 2 Machines Repaired . | . . . . . . Machines Dismantled . | . . . . . . Machines Sabotaged . | . . . . . . Overloaded Fab Kills . | . . . . . . Hacking | -11 -10 -10 -7 -7 -5 --------- Run | Yrd Mat Sub Rec Scr Fac Machines Accessed 27 | . 7 . 5 3 12 Terminals 17 | . 7 . 4 . 6 Fabricators 1 | . . . . . 1 Repair Stations . | . . . . . . Recycling Units 3 | . . . 1 . 2 Scanalyzers 1 | . . . . . 1 Garrison Access 2 | . . . . . 2 Total Hacks 75 | . 23 . 13 7 32 Successful 38 | . 10 . 2 7 19 Failed 35 | . 12 . 11 . 12 Catastrophic 2 | . . . 2 . . Database Lockouts 2 | . 1 . . . 1 Manual 56 | . 22 . 9 . 25 Terminals 58 | . 23 . 11 . 24 Fabricators 1 | . . . . . 1 Repair Stations . | . . . . . . Recycling Units 4 | . . . 2 . 2 Scanalyzers 1 | . . . . . 1 Garrison Access 4 | . . . . . 4 Terminal Hacks 15 | . 3 . 1 7 4 Record 5 | . . . . 5 . Part Schematic 2 | . . . 1 . 1 Robot Analysis 2 | . 1 . . . 1 Prototype ID Bank 1 | . . . . . 1 Open Door 1 | . . . . 1 . Terminal Index 1 | . . . . . 1 Unreport Threat 1 | . 1 . . . . Registered Components 1 | . 1 . . . . Proto ID Catalog 1 | . . . . 1 . Fabricator Hacks . | . . . . . . Repair Station Hacks . | . . . . . . Recycling Unit Hacks . | . . . . . . Scanalyzer . | . . . . . . Garrison Access Hacks 2 | . . . . . 2 Seal Access 2 | . . . . . 2 Unauthorized Hacks 21 | . 7 . 1 . 13 Terminals 18 | . 7 . 1 . 10 Track 6 | . 3 . . . 3 Assimilate 1 | . . . . . 1 Botnet 9 | . 3 . 1 . 5 Operators 2 | . 1 . . . 1 Fabricators 1 | . . . . . 1 Fabnet 1 | . . . . . 1 Repair Stations . | . . . . . . Recycling Units 2 | . . . . . 2 Fedlink 2 | . . . . . 2 Scanalyzers . | . . . . . . Garrison Access . | . . . . . . Data Cores Recovered . | . . . . . . Used . | . . . . . . Hacking Detections 20 | . 7 . 5 . 8 Full Trace Events 1 | . . . 1 . . Feedback Events . | . . . . . . Feedback Blocked . | . . . . . . Robot Schematics Acquired . | . . . . . . Robots Built . | . . . . . . Authchips . | . . . . . . Time . | . . . . . . Total Robot Build Rating . | . . . . . . Part Schematics Acquired 2 | . . . 1 . 1 Parts Built . | . . . . . . Authchips . | . . . . . . Time . | . . . . . . Total Part Build Rating . | . . . . . . Part Studies Acquired . | . . . . . . Parts Repaired . | . . . . . . Time . | . . . . . . Parts Recycled . | . . . . . . Recycled Matter . | . . . . . . Retrieved Matter . | . . . . . . Retrieved Components . | . . . . . . Parts Scanalyzed . | . . . . . . Part Schematics Acquired . | . . . . . . Parts Damaged . | . . . . . . Bothacking | -11 -10 -10 -7 -7 -5 ------------ Run | Yrd Mat Sub Rec Scr Fac Used RIF Installer . | . . . . . . Robots Hacked . | . . . . . . Non-combat . | . . . . . . Combat . | . . . . . . Robot Hacks Applied . | . . . . . . Relay Couplers Released . | . . . . . . Fabnet Peak Effective % . | . . . . . . Robots Rewired . | . . . . . . Allies Hacked . | . . . . . . Hacks Repelled . | . . . . . . Allies | -11 -10 -10 -7 -7 -5 -------- Run | Yrd Mat Sub Rec Scr Fac Total Allies 1 | . . . . 1 . Largest Group 1 | . . . . 1 1 Highest-Rated Group 56 | . . . . 56 56 Highest-Rated Ally 56 | . . . . 56 56 Initial UFD Resources 37 | . . . . . 37 Total Orders . | . . . . . . Ally Attacks 11 | . . . . . 11 Total Damage 386 | . . . . . 386 Kills 3 | . . . . . 3 Allies Corrupted . | . . . . . . Allies Melted . | . . . . . . Intel | -11 -10 -10 -7 -7 -5 ------- Run | Yrd Mat Sub Rec Scr Fac Active Infowar (turns) 1959 | . 484 . . . 1475 Seismic 484 | . 484 . . . . Machine Analysis 1475 | . . . . . 1475 Robot Analysis Total 2 | . 1 . . . 1 Derelict Logs Recovered 6 | . . 1 . 5 . Drone Launches . | . . . . . . Drone Recoveries . | . . . . . . Exploration | -11 -10 -10 -7 -7 -5 ------------- Run | Yrd Mat Sub Rec Scr Fac Turns Passed 11130 | 116 760 3294 704 4775 1481 Spaces Moved 5431 | 69 366 1396 412 2417 771 Core 73 | 5 . . . . 68 Treads 1192 | . 95 681 . . 416 Legs . | . . . . . . Wheels 4166 | 64 271 715 412 2417 287 Hover . | . . . . . . Flight . | . . . . . . Fastest Speed 50 | 50 80 110 170 140 50 Average Speed 182 | 88 145 199 170 193 149 Slowest Speed 260 | 200 160 250 170 230 260 Overloaded Moves . | . . . . . . Propulsion Burnouts . | . . . . . . Robots Hopped . | . . . . . . Potential Cave-ins 6 | . . 4 . . 2 Cave-ins Triggered . | . . . . . . Exploration Rate (%) 57 | 3 76 75 71 90 27 Regions Visited 5 Branch Regions 3 Pre-discovered Areas 2 | . . 1 . . 1 Known Exits Taken 1 | . . 1 . . . Unknown Exits Taken 4 | 1 1 . 1 1 . Scrap Searched 20 | . . 8 . 12 . Spaces Dug 60 | . . 20 12 . 28 Terrain Destroyed 208 | . . 97 12 . 99 Melee 28 | . . . . . 28 Projectile 14 | . . 5 . . 9 AOE 166 | . . 92 12 . 62 Terrain Rammed . | . . . . . . Walls Destroyed . | . . . . . . Machines Disabled . | . . . . . . Actions | -11 -10 -10 -7 -7 -5 --------- Run | Yrd Mat Sub Rec Scr Fac Total 6137 | 96 505 1619 415 2539 963 Wait 158 | . 67 55 . 20 16 Move 5426 | 68 365 1395 411 2416 771 Hop . | . . . . . . Pick Up 94 | 6 16 14 2 45 11 Fast Attach 21 | 8 . 1 . 5 7 Attach 27 | . 1 6 . 1 19 Detach 4 | 1 . . . 2 1 Swap 53 | . 7 22 . 8 16 Drop 85 | 1 4 16 1 42 21 Fire 227 | 12 45 110 1 . 59 Melee 39 | . . . . . 39 Ram 1 | . . . . . 1 Kick . | . . . . . . Crush . | . . . . . . Escape Stasis . | . . . . . . Rewire . | . . . . . . Trap 2 | . . . . . 2 Miscellaneous . | . . . . . . Route ------- -11/Scrapyard -10/Materials (discovered 3 exits: [*Mat] / [*Min] / [*Sub]) -10/Subcaves (discovered 2 exits: [*Mat] / *Rec) -7/Recycling (discovered 2 exits: *Fac / *Scr) -7/Scraptown (discovered 2 exits: *Fac x2) -5/Factory (discovered 1 exit: Fac) History --------- Turn | Location | Event 2 | -11/Scrapyard | Met Revision 17 19 | -11/Scrapyard | Discovered new exit (range 16) 117 | -11/Scrapyard | Entered Materials 304 | -10/Materials | Build established: Mutant 436 | -10/Materials | Central database locked down 446 | -10/Materials | Discovered new exit (range 13) 611 | -10/Materials | Discovered new exit (range 10) 861 | -10/Materials | Discovered new exit (range 8) 877 | -10/Materials | Entered Subcaves 878 | -10/Subcaves | Approached by a straggling Scientist 979 | -10/Subcaves | Ambushed by swarm of Subdwellers 981 | -10/Subcaves | Ambushed by Subdwellers from Twisted Machinery 981 | -10/Subcaves | Ambushed by Subdwellers from Twisted Machinery 1189 | -10/Subcaves | Ambushed by Subdwellers from Twisted Machinery 1221 | -10/Subcaves | Discovered new exit (range 10) 1401 | -10/Subcaves | A swath of the cavern ceiling suddenly collapsed 1765 | -10/Subcaves | Core integrity fell below 50% 1804 | -10/Subcaves | Core integrity fell below 20% 2839 | -10/Subcaves | Shifting Twisted Machinery released Mak. Light Armor Plating 2854 | -10/Subcaves | Shifting Twisted Machinery released Mak. Thermal Plating 2931 | -10/Subcaves | Identified exit to Recycling 2952 | -10/Subcaves | Learned location of Zion (-6) 2952 | -10/Subcaves | Met a Zionite searching for "candidates" 3912 | -10/Subcaves | Lost 4 parts (1p1n1u1w) 4126 | -10/Subcaves | Ambushed by Subdweller buried in earth 4171 | -10/Subcaves | Entered Recycling 4427 | -7/Recycling | Build established: Derelict-Mutant 4492 | -7/Recycling | Scanned before Scraplab entrance 4649 | -7/Recycling | Discovered new exit (range 15) 4854 | -7/Recycling | Entered Scraplab 4870 | -7/Recycling | Discovered new exit (range 3) 4875 | -7/Recycling | Entered Scraptown 4879 | -7/Scraptown | System corruption cleaned by C-Scrubber 5441 | -7/Scraptown | Heard Great Nut preacher, LISTEN AND RECITE! 5491 | -7/Scraptown | Scanned Subdweller tech in exchange for log data 5495 | -7/Scraptown | Learned location of 1 exit from Proximity Caves 5497 | -7/Scraptown | Learned Factory stockpile data 5501 | -7/Scraptown | Learned location of 1 exit from Upper Caves 5503 | -7/Scraptown | Learned 12 Factory zone layouts 5518 | -7/Scraptown | Discovered new exit (range 11) 5900 | -7/Scraptown | Build established: Mutant 5970 | -7/Scraptown | Visited Shadow of the Wyrm 5995 | -7/Scraptown | Visited Red Mages 6015 | -7/Scraptown | Visited Bundlers 6167 | -7/Scraptown | Visited Comm Corps 6262 | -7/Scraptown | Visited Science Testing Area 6272 | -7/Scraptown | Visited CPS Storage 6294 | -7/Scraptown | Visited Cyclists 6328 | -7/Scraptown | Visited UFD Registry 6328 | -7/Scraptown | Registered with UFD as "Nanodrive" 6393 | -7/Scraptown | Visited Botcube Research 6410 | -7/Scraptown | Found Botcube 6438 | -7/Scraptown | Visited Chapter 10 6477 | -7/Scraptown | Visited Research Penetration Think Tank 6543 | -7/Scraptown | Delivered Scrap Shield to a Scientist 6692 | -7/Scraptown | Visited Junk Repository 6780 | -7/Scraptown | Visited Derelict Rescue Squad 6794 | -7/Scraptown | Found DRS Beacon 6825 | -7/Scraptown | Visited Sword Containment 6845 | -7/Scraptown | Found Prototype Slashing Weapon 6891 | -7/Scraptown | Visited DA-N13 Charitable Foundation 6898 | -7/Scraptown | Found DCF Scrap (28 items) 7342 | -7/Scraptown | Visited Science Guys 7436 | -7/Scraptown | Visited Curators Association 8076 | -7/Scraptown | Found Scrap Suit 8810 | -7/Scraptown | Botcube activated 9512 | -7/Scraptown | Met Optimus 9512 | -7/Scraptown | Accepted into 0bPrime 9645 | -7/Scraptown | Discovered new exit (range 3) 9650 | -7/Scraptown | Entered Factory 9650 | -5/Factory | Accompanied by 1 ally 9650 | -5/Factory | Evolved 10 slots: Propulsion x3, Utility x6, Weapon x1 9651 | -5/Factory | Identified exit to Factory 9943 | -5/Factory | Build established: Derelict-Mutant 10208 | -5/Factory | Loaded intel: 8 recycling unit locations 10777 | -5/Factory | Learned location of Protoforge (-2) 10968 | -5/Factory | Garrison activated, responded to threat 11088 | -5/Factory | Identified Companion Sword 11101 | -5/Factory | Spotted B-75 Beast 11102 | -5/Factory | Cargo convoy interrupted 11106 | -5/Factory | Core integrity fell below 50% 11113 | -5/Factory | Core integrity fell below 20% 11128 | -5/Factory | Central database locked down 11131 | -5/Factory | Destroyed by P-70 Sage with High-powered Shock Rifle Last Messages --------------- dispatching Cutter reinforcements to area. 11112_ Knocked back. 11113_ Acquired 10 matter. 11119_ >> Machine Analyzer network decryption results: 11119_ Scanalyzer x2 11121_ K-01 Serf knocked back. 11121_ Knocked back. 11121_ T-07 Excavator destroyed. 11123_ 9EQ,FVZA &ZT,BEJTAYMXAMZ/3R:&PFF&ZJFXBE8 11123_ K-01 Serf collects debris. 11123_ Slammed into K-01 Serf. 11124_ Mak. Hacking Suite severed. 11126_ K-01 Serf cleans the Scanalyzer. 11128_ Connecting with Scanalyzer... 11128_ ALERT: Central database lockdown, local access denied. 11128_ Microactuators severed. 11128_ Adv. Targeting Computer severed. 11129_ K-01 Serf cleans the Scanalyzer. Map ----- +----------------------------------------------------+ | ?????????????????# ????? """"" ###?# """ | | ????????????????? ????? """"" #???# """ | | ????????????????#T?????? #???# """ | | ????????????????#??????? """ #???# | | ???????????????????????? """" ############+# | | ???????????????????????? ??"" o | | ???????????????????????? ????? | | ??????????????????????????????""" % | | ????????????????????????????""""" | | ????????????????????????????""""" | | ???????????????????????????????? ############ | | ??????????????????????????????? ????? * | | ??????????????????????????????? #????? | | ??????????????????????????????? #????""" | | ?????????????????????????????? p #????""" | | ?????????????????????????????? #????""" ""T"" | | ????????????????????????####+#;p##/###?????? """"" | | ?""?"""?????"""?"""?"""?# k #??????? | | """?"""?????"""?"""?"""?# "" ####### | | "F??"""?????"""?"""?"""?# """ # | | """?????????????????????# c S" # | | ?""?"""?????????????????# ! """ # | | ????"""?????????????????# cc """ + | | ????"""?????????????????# c # | | ?????????????""""T""""??# # | | ????????????"""""""""""?#@""""""""" ##### | | ????????????????????????# #???# ### | | ????????????????????????# """"""""" #???# #?# | | ????????????????????????# #???# #?# | | ????????????????????????#########+####???#+#?# | | ????????????????????????????????# #??????????# | | ????????????????????????????????# #??????????# | | ????????????????????????????????# #??????????# | | ????????????????????????????????# ???????????+ | | ????????????????????????????????? ???????????# | | ?????????????????????????????????????????????# | | ?????????????????????????????????????????????### # | | ????????????????????????[????????????????????????? | | ?????????????????????????????????????????????????? | | ?????????????????????????????????????????????????? | | ?????????????????????????????????????????????????? | | ?????????????????????????????????????????????????? | | ?????????????????????????????????????????????????? | | ?????????????????????????????????????????????????? | | ?????????????????????????????????????????????????? | | ?????????????????????????????????????""??????????? | | ?????????????????????????????????????"F??????????? | | ?????????????????????????????????????""??????????? | | ?????????????????????????????????????""??????????? | | ?????????????????????????????????????????????????? | +----------------------------------------------------+ Best States ------------- Heat Dissipation 40 Energy Generation 19 Energy Capacity 665 Matter Stores 300 Matter Capacity 300 Sight Range 16 Terrain Scan Density 10 Armor Coverage 225 Resistance: KI 25 Resistance: TH 25 Weapon Cycling 20 Phase Shifting 5 Evasion (%) 50 Target Analysis 5 Recoil Reduction 8 Offensive Hacking 21 Item Schematics ----------------- System Guard | -7/Recycling | Hacked Adv. Recoil Stabilizer | -5/Factory | Hacked Robot Schematics ------------------ None Fabricated ------------ Nothing Repaired ---------- Nothing Studied --------- None Alien Tech Used ----------------- None Achievements -------------- Do Not Disturb You Again Challenges ------------ None Game ------ Seed AlphaShockboltSink Manual? 0 Play Time 01:12:14 Cumulative 410.3 hours Start 2026.02.26 @ 15:20:54 End 2026.02.26 @ 19:11:01 Sessions 3 Manual Loads 0 Difficulty Rogue Special Mode None Game No. 459 Rogue 459 Adventurer 0 Explorer 0 Win Type - Total 6 Types 3/1/1/1/0/0/0/0/0/0 Lore% 76 Gallery% 68 Achievement% 45 Wizard Run 0 Options --------- Layout 1 ASCII 0 Keyboard 0 Movement Numpad Keybinds 0 Fullscreen 1 Font 32/SmallcapsGlow Map View 50x35 Zoom Use 0% Tactical HUD 1 Map Filters NONE Filters NONE Steam 1 RUN: df0e9f2f-7df1-4ef2-8586-7ffb166b7f3e